[Event "RUDAR 2 IM 2022"]
[Site "Pozarevac"]
[Date "2022.04.08"]
[Round "8.4"]
[White "Savitha Shri B"]
[Black "Bryakin, Mikhail"]
[Result "0-1"]
[ECO "B19"]
[WhiteElo "2257"]
[BlackElo "2481"]
[Annotator "TA"]
[PlyCount "110"]
[EventDate "2022.03.27"]
[EventType "tourn"]
[EventCountry "SRB"]
[SourceTitle "playchess.com"]
[Source "ChessBase"]
[SourceQuality "1"]
[TimeControl "40/5400+30:900+30"]

{[%evp 24,110,7,0,8,20,32,18,20,5,53,0,0,11,46,0,66,0,-1,-79,-91,-83,-89,-87,-87,-90,-46,-60,-45,-37,-14,-30,-24,-30,-37,-25,-29,-49,-16,-16,-71,-6,-4,-14,-15,-13,0,-43,-37,-55,-56,-49,-48,-95,-91,-114,-116,-200,-200,-350,-197,-344,-305,-311,-302,-300,-220,-199,-102,-291,-260,-525,-513,-761,-664,-759,-761,-1687,-1529,-29980,-29981,-29982,-29983,-29983,-29984,-29984,-29975,-29975,-29975]} 1. e4 {[%emt 0:01:35]} c6 {[%emt 0:00:11]} 2. d4 {[%emt 0:00:13]} d5 {[%emt 0:00:05]} 3. Nc3 {[%emt 0:00:05]} dxe4 {[%emt 0:00:06]} 4. Nxe4 {[%emt 0:00:07]} Bf5 {[%emt 0:00:02]} 5. Ng3 {[%emt 0:00:10]} Bg6 {[%emt 0:00:05]} 6. h4 {[%emt 0:00:06]} h6 {[%emt 0:00:06]} 7. Nf3 {[%emt 0:00:06]} Nd7 {[%emt 0:00:05]} 8. h5 {[%emt 0:00:18]} Bh7 {[%emt 0:00:05]} 9. Bd3 {[%emt 0:00:05]} Bxd3 {[%emt 0:00:06]} 10. Qxd3 {[%emt 0:00:04]} e6 {[%emt 0:00:06]} 11. Bd2 {[%emt 0:00:04]} Ngf6 {[%emt 0:00:08]} 12. O-O-O {[%emt 0:00:06]} Be7 {[%emt 0:00:15]} 13. Kb1 {[%emt 0:00:53]} c5 {[%emt 0:00:37] B19: Classical Caro-Kann: 4...Bf5 main line.} 14. Ne4 {[%emt 0:02:28]} O-O {[%emt 0:02:40]} 15. g4 {[%emt 0:00:39]} Nxg4 {[%emt 0:06:27] ...f5 is the strong threat. The position is equal.} 16. Qe2 {[%emt 0:00:06][%cal Of3e5] Black should prevent Ne5!} f5 {[%emt 0:00:19]} (16... Qb6 $11 {was preferrable.}) 17. Nc3 {[%emt 0:14:58] [#]} ({Better is} 17. Nxc5 $14 Nxc5 18. dxc5 Bxc5 19. Qxe6+ Rf7 20. Ne5 Nxe5 21. Qxe5) 17... Bf6 $146 {[%emt 0:13:36]} ({Predecessor:} 17... Qb6 18. Ne5 Ngxe5 19. dxe5 Rad8 20. Bf4 Nb8 21. Rdg1 Kh8 22. Rg6 Rf7 23. Rhg1 Rd4 24. Qe3 Bf8 25. Qg3 Qb4 26. Rxh6+ Kg8 27. Qg6 Rfd7 28. Qh7+ Kf7 29. Rf6+ {1-0 (29) Shytaj,L (2490)-Tica,S (2417) Radenci 2019}) 18. Qxe6+ {[%emt 0:09:21]} Kh8 {[%emt 0:01:18]} 19. Nd5 {[%emt 0:17:14]} (19. Qxf5 $2 Nxf2 20. Qg6 Qe8 $19) (19. Be1 $14) 19... Bxd4 {[%emt 0:15:15]} (19... Qe8 $11 20. Qxe8 (20. Qxf5 Nxf2 21. Nf4 Kg8 $11) 20... Raxe8) 20. c3 {[%emt 0:06:51]} (20. Nxd4 cxd4 21. Nf4 Rf6 $11) (20. Be3 $14) 20... Nde5 $1 $11 {[%emt 0:17:08]} (20... Bxf2 $2 21. Bxh6 $1 Nxh6 22. Ne7 $18) 21. cxd4 {[%emt 0:38:17]} (21. Nxd4 $2 Re8 22. Qxf5 Qxd5 $19) (21. Nxe5 $11 {remains equal.} Bxe5 22. Be3) 21... Nxf3 $17 {[%emt 0:00:27]} 22. Be3 {[%emt 0:01:29]} cxd4 {[%emt 0:07:04]} 23. Bxd4 {[%emt 0:00:24]} Nxd4 {[%emt 0:02:13]} 24. Rxd4 {[%emt 0:00:10]} Rf6 {[%emt 0:00:07]} 25. Qe2 {[%emt 0:01:09]} Rd6 {[%emt 0:00:25]} 26. Rhd1 {[%emt 0:00:06]} Rc8 {[%emt 0:08:20]} 27. a3 {[%emt 0:01:40]} Nf6 {[%emt 0:03:09]} 28. Qe5 {[%emt 0:00:45]} Nxd5 {[%emt 0:12:12]} (28... Nxh5 $2 29. Ne7 (29. Qxf5 Qe8 $11) 29... Rxd4 30. Rxd4 $18) (28... Rc5 {[#]} 29. Nxf6 $1 Rxe5 30. Rxd6 Qxf6 31. Rxf6 gxf6 32. Rd8+ Kg7 33. Rd7+ Kf8 34. Rxb7 $14) 29. Rxd5 {[%emt 0:00:02]} Rxd5 {[%emt 0:00:01]} 30. Rxd5 $11 {[%emt 0:00:10][%mdl 4096] Endgame KQR-KQR} Qc7 {[%emt 0:02:28]} 31. Qxf5 {[%emt 0:02:04]} ({Much worse is} 31. Qxc7 Rxc7 32. Rxf5 g6 33. hxg6 Kg7 $17) 31... Qc1+ {[%emt 0:00:03]} 32. Ka2 {[%emt 0:00:05]} Qc4+ {[%emt 0:00:06]} 33. Ka1 {[%emt 0:00:07]} Re8 {[%emt 0:00:32]} 34. Rd1 {[%emt 0:00:02] Inhibits Re1.} (34. Qd7 {looks sharper.} Re2 35. Rd1 Qc2 36. Rb1) 34... Qe2 {[%emt 0:00:46]} 35. Rg1 {[%emt 0:01:16]} Qe6 {[%emt 0:01:49]} 36. Qf4 {[%emt 0:00:28]} b6 {[%emt 0:00:55]} 37. Qg3 {[%emt 0:01:05][%csl Gg1][%cal Rg3g7]} Qe5 {[%emt 0:01:01]} 38. Qg4 {[%emt 0:00:48]} (38. f4 $15 {is more appropriate.} Qd4 39. Qg4) 38... Rf8 $17 {[%emt 0:00:31]} 39. Rd1 {[%emt 0:00:33]} Qf5 {[%emt 0:00:48]} 40. Qa4 {[%emt 0:00:00]} (40. Qg6 $17) 40... Qxh5 $19 {[%emt 0:00:00]} 41. Rd7 {[%emt 0:03:12]} (41. f4 $142) 41... a5 {[%emt 0:06:18]} (41... Rxf2 $142 {Strongly threatening ...Rf1+.} 42. Qd4 Rf7) 42. Qc6 {[%emt 0:02:22]} (42. Qd4 $142 Qg6 43. f4) 42... Rxf2 {[%emt 0:04:32]} 43. Qxb6 {[%emt 0:00:43]} Qe2 {[%emt 0:03:26] Hoping for ...Rf1+.} 44. Rd4 {[%emt 0:08:00]} Qe1+ {[%emt 0:03:12]} 45. Ka2 {[%emt 0:00:06]} Rf6 {[%emt 0:00:47] Against Qg6} ({Inferior is} 45... Rf1 46. Kb3) (45... Kh7 $19 {Threatens to win with ...Qe3.} 46. Rd6 Rf1) 46. Qd8+ $2 {[%emt 0:00:27] Loses the game.} (46. Rd6 $17) 46... Kh7 {[%emt 0:00:10]} 47. Qd5 $2 {[%emt 0:02:29]} (47. Rd1 {is a better defense.} Qe2 48. Rh1) 47... Qe6 {[%emt 0:00:25]} 48. Qxe6 Rxe6 {[%emt 0:00:01] KR-KR} 49. Rd5 {[%emt 0:01:14]} g5 {[%emt 0:01:05][%cal Bg7g5,Bg5g4,Bg4g3,Bg3g2][%mdl 32]} 50. Rxa5 {[%emt 0:00:12]} g4 {[%emt 0:00:14] ( -> ...Rg6)} 51. Rd5 {[%emt 0:02:57]} Rg6 {[%emt 0:01:07] Black mates.} 52. b4 {[%emt 0:00:45]} g3 {[%emt 0:00:10]} 53. Rd1 {[%emt 0:00:02]} g2 {[%emt 0:00:59]} 54. Rg1 {[%emt 0:00:05]} h5 {[%emt 0:00:16][%cal Bh6h5,Bh5h4][%mdl 32]} 55. b5 {[%emt 0:00:37]} h4 {[%emt 0:00:05] Weighted Error Value: White=0.66/Black=0.17 (very precise)} 0-1

[Event "RUDAR 2 IM 2022"]
[Site "Pozarevac"]
[Date "2022.04.09"]
[Round "9.1"]
[White "Anishka Vikram"]
[Black "Andreev, Konstantin"]
[Result "0-1"]
[ECO "E54"]
[WhiteElo "2000"]
[BlackElo "2238"]
[Annotator "TA"]
[PlyCount "109"]
[EventDate "2022.03.27"]
[EventType "tourn"]
[EventCountry "SRB"]
[SourceTitle "playchess.com"]
[Source "ChessBase"]
[SourceQuality "1"]
[TimeControl "40/5400+30:900+30"]

{[%evp 23,109,7,32,0,0,0,18,12,18,25,20,22,13,27,152,149,209,165,168,168,158,167,162,175,385,220,224,212,577,264,419,416,405,0,0,0,0,-16,-15,-15,-16,-41,-52,-111,-110,-92,-97,-111,-111,-116,-118,-155,-163,-153,-152,-250,-236,-272,-263,-393,-331,-753,-744,-903,-872,-821,-791,-1841,-1947,-1993,-1947,-2542,-2352,-2516,-2436,-8475,-5616,-29970,-29973,-29975,-29977,-29978,-29979,-29979,-29979,-29979,-29980,-29992]} 1. d4 {[%emt 0:00:03]} Nf6 {[%emt 0:00:06]} 2. c4 {[%emt 0:00:05]} e6 {[%emt 0:00:05]} 3. Nc3 {[%emt 0:00:04]} Bb4 {[%emt 0:00:06]} 4. e3 {[%emt 0:00:13]} O-O {[%emt 0:00:14]} 5. Bd3 {[%emt 0:00:05]} d5 {[%emt 0:00:15]} 6. Nf3 {[%emt 0:00:26]} c5 {[%emt 0:00:56]} 7. O-O {[%emt 0:00:41]} dxc4 {[%emt 0:00:56]} 8. Bxc4 {[%emt 0:00:07]} cxd4 {[%emt 0:00:05]} 9. exd4 {[%emt 0:00:14]} b6 {[%emt 0:00:24]} 10. Qe2 {[%emt 0:02:41]} Bb7 {[%emt 0:00:16]} 11. Rd1 {[%emt 0:01:35]} Bxc3 {[%emt 0:02:55] 11...h6 is the fancy move.} 12. bxc3 {[%emt 0:00:08][%cal Bb2c3,Bc3c4,Bc4d5,Bd5d6,Bd6d7][%mdl 32]} Nbd7 {[%emt 0:00:07]} 13. Ba3 {[%emt 0:10:09] E54: Nimzo-Indian: Rubinstein: Main Line: 7...dxc4 8 Bxc4.} Re8 {[%emt 0:01:07]} 14. Rac1 {[%emt 0:01:22]} Qc7 {[%emt 0:00:33]} 15. Bb3 {[%emt 0:12:16] The position is equal.} Nh5 {[%emt 0:07:37]} 16. c4 {[%emt 0:07:45]} Nf4 {[%emt 0:05:59]} 17. Qe3 {[%emt 0:02:19]} Nf6 {[%emt 0:01:18]} 18. h3 {[%emt 0:06:53] [#] Inhibits Ng4.} Rac8 $146 {[%emt 0:11:05] [#]} (18... a6 $11) ({Predecessor:} 18... h6 19. Ba4 Red8 20. d5 exd5 21. cxd5 Qb8 22. d6 N6d5 23. Qd2 Rxd6 24. Bxd6 Qxd6 {1-0 (31) Sarkar,J (2383)-Gorti,A (2215) Manchester 2017}) 19. Ba4 $1 $16 {[%emt 0:07:40]} Red8 {[%emt 0:00:41]} (19... Bxf3 $16 20. Qxf3 Red8) 20. d5 $1 $18 {[%emt 0:03:51]} exd5 {[%emt 0:06:24]} 21. cxd5 {[%emt 0:04:09]} Qb8 {[%emt 0:00:21]} 22. Rxc8 {[%emt 0:03:05]} Rxc8 {[%emt 0:00:19]} 23. d6 {[%emt 0:00:15]} N6d5 {[%emt 0:00:31]} (23... N4d5 24. Qe5 b5) 24. Qe1 {[%emt 0:01:30]} (24. Qe5 $142) 24... Nc3 {[%emt 0:07:07] Strongly threatening ...Bxf3.} 25. d7 {[%emt 0:01:05]} Nce2+ $2 {[%emt 0:05:07]} (25... Nfe2+ 26. Kh1 Nxd1) 26. Kh1 {[%emt 0:01:56]} (26. Kf1 $142) 26... Bxf3 {[%emt 0:04:29]} (26... Rd8 $142) 27. gxf3 {[%emt 0:00:59]} ({Not} 27. dxc8=B Bxg2+ 28. Kh2 Nd3+ 29. Kxg2 Nxe1+ 30. Rxe1 Qe5 $11) ({Less strong is} 27. dxc8=R+ Qxc8 28. Kh2 h6 $18) 27... Rd8 {[%emt 0:00:05]} 28. Bc6 {[%emt 0:22:33] Inhibits Qb7.} (28. Qd2 $18 b5 29. Bb3) 28... Qe5 $11 {[%emt 0:01:52] White must now prevent ...Qh5.} 29. Bd6 {[%emt 0:00:35] This bishop pair is nice.} Qe6 $40 {[%emt 0:00:11][%cal Re6h3][%mdl 128] Black attacks.} 30. Bxf4 {[%emt 0:00:28]} Nxf4 {[%emt 0:00:16] Chess con chili.} 31. Qxe6 {[%emt 0:00:33]} Nxe6 {[%emt 0:00:12][%mdl 4096] Endgame KRB-KRN} 32. Re1 {[%emt 0:01:31]} Kf8 {[%emt 0:01:07]} 33. Kg2 {[%emt 0:02:25]} ({White should try} 33. a4 $15) 33... Ke7 $17 {[%emt 0:00:22]} 34. Bb5 {[%emt 0:00:56]} Kd6 {[%emt 0:01:32]} 35. Rd1+ {[%emt 0:00:13] [#]} Kc7 $1 {[%emt 0:01:15]} 36. Rc1+ {[%emt 0:00:39]} Nc5 {[%emt 0:00:06]} 37. Re1 {[%emt 0:00:57]} a6 {[%emt 0:00:11]} ({Don't do} 37... Nxd7 38. Re7 $14) 38. Bc4 {[%emt 0:01:11]} Rxd7 {[%emt 0:00:27]} 39. Re5 {[%emt 0:02:37]} (39. Rc1 $17 {was necessary.}) 39... Kc6 $19 {[%emt 0:00:51]} 40. Re8 {[%emt 0:00:00]} b5 {[%emt 0:00:00]} 41. Rc8+ {[%emt 0:02:13]} (41. Bf1 {was called for.}) 41... Kb6 {[%emt 0:02:06]} 42. Bb3 {[%emt 0:00:16]} (42. Bf1) 42... Nxb3 {[%emt 0:00:55]} 43. axb3 {[%emt 0:00:01] KR-KR} a5 {[%emt 0:00:26]} 44. Rb8+ {[%emt 0:00:22]} Rb7 {[%emt 0:00:18]} 45. Ra8 {[%emt 0:00:07]} Ra7 {[%emt 0:00:04]} 46. Rb8+ {[%emt 0:00:04]} Kc5 {[%emt 0:00:04]} 47. Rc8+ {[%emt 0:00:06]} Kb4 {[%emt 0:00:04]} 48. Rb8 {[%emt 0:00:15]} Kxb3 {[%emt 0:01:27]} 49. Rxb5+ {[%emt 0:00:02]} Kc4 {[%emt 0:00:13]} 50. Rb1 {[%emt 0:00:16]} a4 {[%emt 0:00:05][%cal Ba5a4,Ba4a3,Ba3a2][%mdl 32] Black mates.} 51. Kf1 {[%emt 0:00:07]} a3 {[%emt 0:00:04]} 52. Ke2 {[%emt 0:00:10]} a2 {[%emt 0:00:05]} 53. Ra1 {[%emt 0:00:05]} Kb3 {[%emt 0:00:04]} 54. Kd2 {[%emt 0:00:06]} Kb2 {[%emt 0:00:04]} 55. Ke3 {[%emt 0:22:36] Never resign too early!  Weighted Error Value: White=0.93/Black=0.23 (precise)} 0-1

[Event "RUDAR 2 IM 2022"]
[Site "Pozarevac"]
[Date "2022.04.09"]
[Round "9.2"]
[White "Milanovic, Slavisa"]
[Black "Velikic, Adela"]
[Result "1-0"]
[ECO "E01"]
[WhiteElo "2296"]
[BlackElo "2258"]
[Annotator "TA"]
[PlyCount "117"]
[EventDate "2022.03.27"]
[EventType "tourn"]
[EventCountry "SRB"]
[SourceTitle "playchess.com"]
[Source "ChessBase"]
[SourceQuality "1"]
[TimeControl "40/5400+30:900+30"]

{[%evp 15,117,-36,0,-10,-1,-11,-8,-3,-7,0,10,-79,-69,-91,-1,-37,-25,-22,-36,-172,-170,-174,-174,-191,-122,-122,-108,-199,-189,-217,-197,-254,-258,-261,-229,-235,-219,-248,-248,-236,-71,-80,-67,-70,0,0,0,0,0,0,0,0,0,0,0,0,0,0,0,0,0,0,0,-10,0,0,0,0,0,0,8,8,8,0,0,0,8,8,37,56,366,286,681,366,693,519,1917,1831,1780,1837,1750,1677,4789,4782,4775,4775,4710,3982,29984,29985,29988,29985,29985,29986]} 1. c4 {[%emt 0:00:03]} c6 {[%emt 0:00:33]} 2. d4 {[%emt 0:00:45]} d5 {[%emt 0:00:12]} 3. Nc3 {[%emt 0:00:15]} dxc4 {[%emt 0:00:13]} 4. Nf3 {[%emt 0:03:09]} b5 {[%emt 0:01:32]} 5. g3 {[%emt 0:00:38]} e6 {[%emt 0:02:49]} 6. Bg2 {[%emt 0:00:42]} Nf6 {[%emt 0:02:45]} 7. O-O {[%emt 0:00:42]} Bb7 {[%emt 0:04:52]} 8. e4 {[%emt 0:06:26]} Nbd7 {[%emt 0:16:07]} 9. a4 {[%emt 0:03:27] E01: Catalan: Early deviations.} b4 {[%emt 0:16:26]} 10. e5 {[%emt 0:04:27]} bxc3 {[%emt 0:12:37]} 11. exf6 {[%emt 0:00:08] [#] The position is equal.} Nxf6 $146 {[%emt 0:04:51]} ({Predecessor:} 11... cxb2 12. fxg7 Bxg7 13. Bxb2 c5 14. Qc2 Bxf3 15. Bxf3 Rb8 16. Rfd1 O-O 17. Ra2 cxd4 18. Bxd4 Qc7 19. Qc1 Rfc8 20. Rc2 Ne5 {½-½ (20) Splichal,S (2342)-Sykora,J (2357) ICCF email 2017}) 12. bxc3 {[%emt 0:03:13]} c5 {[%emt 0:00:35]} 13. Ba3 {[%emt 0:07:27]} (13. a5 $11 {remains equal.}) 13... Rc8 {[%emt 0:03:52]} 14. Qb1 {[%emt 0:14:33]} Bd5 {[%emt 0:06:55]} (14... Bxf3 $17 15. Bxf3 cxd4 16. Qb5+ Qd7 17. Bxf8 Kxf8 18. cxd4 g6 19. Qxd7 Nxd7) 15. Qb5+ {[%emt 0:03:56]} (15. Ne5 $5 {[%cal Rb1b5]} a6 16. Bxd5 Qxd5 17. Qb6 cxd4 18. Bxf8 Rxf8 19. cxd4 $11) 15... Nd7 {[%emt 0:05:09]} 16. Ne5 {[%emt 0:00:35]} Rb8 {[%emt 0:03:55]} 17. Bxd5 {[%emt 0:15:29]} Rxb5 $19 {[%emt 0:02:04]} 18. Bc6 {[%emt 0:00:05] [#]} Rb7 {[%emt 0:07:07]} 19. Bxb7 {[%emt 0:00:41] Bc6 is the strong threat.} Nxe5 {[%emt 0:00:27]} (19... cxd4 $1 $19 20. Bc6 Bxa3 21. Rxa3 (21. Bxd7+ $2 Kf8 $19) 21... f6 $1 22. Nxd7 Qc7) 20. dxe5 $17 {[%emt 0:00:08]} Qc7 {[%emt 0:00:17] Against Bc6+} 21. Ba6 {[%emt 0:01:30] [#]} (21. Rab1 $17) 21... Be7 $1 $19 {[%emt 0:02:51]} ({Inferior is} 21... Qxe5 22. Rfe1 Qxc3 23. Bb5+ Kd8 24. Rad1+ Kc8 25. Re3 $17) 22. Bb5+ {[%emt 0:00:06]} Kf8 {[%emt 0:00:04]} 23. f4 {[%emt 0:00:31]} (23. Rfe1 {keeps fighting.}) 23... g5 {[%emt 0:02:51]} ({And not} 23... Qa5 24. Bb2 $17) 24. Rae1 {[%emt 0:05:53]} gxf4 {[%emt 0:02:05]} 25. Rxf4 {[%emt 0:00:07]} Rg8 {[%emt 0:00:55]} 26. Bxc4 {[%emt 0:00:27]} Bg5 {[%emt 0:00:40]} 27. Rf3 {[%emt 0:00:49]} Ke7 {[%emt 0:00:42]} (27... Kg7 $19 {and Black stays clearly on top. And now ...Rd8 would win.} 28. Bf1 Rd8) 28. Bb5 $17 {[%emt 0:03:58]} Rd8 {[%emt 0:00:22]} 29. Ref1 {[%emt 0:00:33][%csl Gf1][%cal Rf3f7]} Kf8 {[%emt 0:00:37]} (29... f5 $15 30. exf6+ Kf7) 30. Rxf7+ $11 {[%emt 0:02:23]} Qxf7 {[%emt 0:00:03]} 31. Bxc5+ {[%emt 0:00:08]} Be7 $1 {[%emt 0:00:22]} 32. Rxf7+ {[%emt 0:01:34]} Kxf7 {[%emt 0:00:03]} 33. Bxa7 {[%emt 0:00:08][%mdl 4096] Endgame KRB-KB. A strong pair of Bishops.} Rd5 {[%emt 0:00:33]} 34. Bb8 {[%emt 0:01:28]} Rd2 {[%emt 0:00:58]} 35. Ba7 {[%emt 0:00:49] Inhibits Bc5+.} Rd5 {[%emt 0:00:24]} 36. Bb8 {[%emt 0:01:01]} Bc5+ {[%emt 0:01:01]} 37. Kg2 {[%emt 0:02:34]} Rd2+ {[%emt 0:00:09]} 38. Kf3 {[%emt 0:00:47]} Rxh2 {[%emt 0:00:51]} 39. a5 {[%emt 0:00:16]} Rb2 {[%emt 0:00:33]} 40. c4 {[%emt 0:00:00]} h5 {[%emt 0:00:00]} 41. Bc7 {[%emt 0:08:08]} Rf2+ {[%emt 0:12:26]} 42. Ke4 {[%emt 0:00:08]} Re2+ {[%emt 0:00:25]} 43. Kf4 {[%emt 0:00:30] Hoping for Bd6.} Rf2+ {[%emt 0:02:22]} 44. Ke4 {[%emt 0:02:47] Threatens to win with Bd6.} Re2+ {[%emt 0:01:50]} 45. Kf4 {[%emt 0:00:35] aiming for Bd6.} Rf2+ {[%emt 0:01:00]} 46. Kg5 {[%emt 0:03:48]} Rf5+ {[%emt 0:00:29]} 47. Kh4 {[%emt 0:00:20]} Be7+ {[%emt 0:00:31]} ({Black should try} 47... Kg6 $1 $14) 48. Kh3 $18 {[%emt 0:00:09] Strongly threatening Bb6.} Rf3 $2 {[%emt 0:00:22]} (48... Bc5 49. Bd6 Bg1) 49. Kg2 {[%emt 0:03:21]} Ra3 {[%emt 0:00:30]} (49... Rd3 50. Bb6 Bd8) 50. Bb6 {[%emt 0:00:06] Black must now prevent a6.} Bb4 {[%emt 0:00:35]} (50... Bg5 $142 51. a6 Be3) 51. a6 {[%emt 0:00:12]} Bc3 {[%emt 0:00:34]} 52. a7 {[%emt 0:00:48]} Bxe5 {[%emt 0:00:29]} 53. Bc6 {[%emt 0:00:13]} Ra2+ {[%emt 0:00:31]} 54. Kh3 {[%emt 0:00:48]} Bc7 {[%emt 0:00:29]} 55. Bg1 {[%emt 0:01:36]} Ra3 {[%emt 0:00:32]} 56. a8=Q {[%emt 0:01:47]} Rxg3+ {[%emt 0:00:30]} 57. Kh4 {[%emt 0:00:19] White mates.} Rxg1 {[%emt 0:00:31]} 58. Qa7 {[%emt 0:00:35]} Rg4+ {[%emt 0:00:26]} 59. Kxh5 {[%emt 0:00:12] Never resign too early!  Weighted Error Value: White=0.25 (precise) /Black=0.51} 1-0

[Event "RUDAR 2 IM 2022"]
[Site "Pozarevac"]
[Date "2022.04.09"]
[Round "9.3"]
[White "Dudukovic, Nikola"]
[Black "Savitha Shri B"]
[Result "1-0"]
[ECO "A62"]
[WhiteElo "2362"]
[BlackElo "2257"]
[Annotator "TA"]
[PlyCount "79"]
[EventDate "2022.03.27"]
[EventType "tourn"]
[EventCountry "SRB"]
[SourceTitle "playchess.com"]
[Source "ChessBase"]
[SourceQuality "1"]
[TimeControl "40/5400+30:900+30"]

{[%evp 18,79,35,36,52,36,51,39,48,41,93,125,151,148,152,150,153,149,191,189,188,183,184,175,191,190,229,225,240,253,241,197,248,240,310,295,372,368,350,347,456,432,443,330,532,547,552,544,617,563,898,924,869,835,913,904,1139,1102,1855,1806,2452,2275,2127,2037]} 1. d4 {[%emt 0:00:14]} Nf6 {[%emt 0:01:10]} 2. Nf3 {[%emt 0:00:21]} g6 {[%emt 0:00:18]} 3. g3 {[%emt 0:00:08]} Bg7 {[%emt 0:00:08]} 4. Bg2 {[%emt 1:31:47]} c5 {[%emt 0:02:12]} 5. d5 {[%emt 0:00:00]} d6 {[%emt 0:00:27]} 6. O-O {[%emt 0:00:00]} e6 {[%emt 0:02:28]} 7. c4 {[%emt 0:00:00]} exd5 {[%emt 0:01:07]} 8. cxd5 {[%emt 0:00:00]} O-O {[%emt 0:06:04]} 9. Nc3 {[%emt 0:00:00]} Na6 {[%emt 0:02:08]} 10. e4 {[%emt 0:00:00]} Nc7 {[%emt 0:03:21] A62: Modern Benoni: Fianchetto Variation without early ...Nbd7.} 11. a4 {[%emt 0:00:00]} a6 {[%emt 0:02:25]} 12. Bf4 {[%emt 0:00:00]} Re8 {[%emt 0:12:33] White is slightly better.} 13. Re1 {[%emt 0:00:00]} Nh5 {[%emt 0:09:03]} (13... Bg4 $14) 14. Bg5 $16 {[%emt 0:00:00]} f6 {[%emt 0:01:08] [#]} 15. Be3 {[%emt 0:00:00]} Bd7 {[%emt 0:01:16]} 16. Nd2 $36 {[%emt 0:00:00][%mdl 2048] aiming for g4. Keeping Black busy.} Bf8 {[%emt 0:00:18] [#]} 17. a5 $146 {[%emt 0:00:00]} ({Predecessor:} 17. Nc4 b5 18. Na5 Qc8 19. Nc6 b4 20. Nb1 Ne6 21. Na5 Nd8 22. Nc4 Rb8 23. Nbd2 {1-0 (42) Filip,M-Barendregt,J Marianske Lazne 1961}) 17... Bb5 {[%emt 0:08:53]} 18. f4 {[%emt 0:00:00]} Ng7 {[%emt 0:02:49]} 19. Nf3 {[%emt 0:00:00]} Bd7 {[%emt 0:01:33]} 20. Bf2 {[%emt 0:00:00]} Nb5 {[%emt 0:08:14]} 21. Na4 {[%emt 0:00:00][%cal Bc3a4,Ba4b6,Bb6c4][%mdl 32]} Qc7 {[%emt 0:03:50]} 22. Nb6 {[%emt 0:00:00]} Rad8 {[%emt 0:00:06]} 23. h3 {[%emt 0:00:00]} Re7 {[%emt 0:03:34]} 24. Nc4 {[%emt 0:00:00]} Bc8 {[%emt 0:03:16]} (24... Qc8 $142) 25. Rc1 $18 {[%emt 0:00:00]} Rde8 {[%emt 0:02:05]} 26. e5 {[%emt 0:00:00]} fxe5 {[%emt 0:01:32]} 27. fxe5 {[%emt 0:00:00]} Qd8 {[%emt 0:05:51]} 28. g4 {[%emt 0:00:00]} Rf7 {[%emt 0:01:36]} 29. e6 {[%emt 0:00:00]} Rc7 {[%emt 0:04:35]} 30. b4 {[%emt 0:00:00]} Be7 $2 {[%emt 0:01:57] [#]} (30... cxb4 31. Bb6 Nc3) 31. bxc5 {[%emt 0:00:00] White is clearly winning.} dxc5 {[%emt 0:00:28]} 32. Bg3 {[%emt 0:00:00]} Nd6 {[%emt 0:00:42]} 33. Nfd2 {[%emt 0:00:00]} Rf8 {[%emt 0:00:25]} 34. Nxd6 {[%emt 0:00:11]} Bxd6 {[%emt 0:00:06]} 35. Bxd6 {[%emt 0:00:05]} Qxd6 {[%emt 0:00:09]} 36. Ne4 {[%emt 0:00:25]} Qf4 {[%emt 0:03:59]} 37. d6 {[%emt 0:00:18]} Rc6 {[%emt 0:00:09]} 38. e7 {[%emt 0:00:51] Active counter play!} Re8 {[%emt 0:00:37]} 39. Rf1 {[%emt 0:03:50]} Qe3+ {[%emt 0:00:22]} 40. Kh1 {[%emt 0:00:00] White took control after the opening.  Weighted Error Value: White=0.09 (flawless) /Black=0.40} 1-0